fUSD/lending_fUSD_20250823
["ID","MTS","AMOUNT","RATE_DAILY","PERIOD"]
[380980002,1755915088436,-400.0,0.0001589,2]
[380980003,1755915088445,-400.0,0.0001589,2]
[380980004,1755915088454,-400.0,0.0001589,2]
[380980005,1755915088464,-546.73,0.0001589,2]
[380980006,1755915088474,-400.0,0.0001589,2]
[380980007,1755915088483,-400.0,0.0001589,2]
[380980008,1755915088494,-400.0,0.0001589,2]
[380980009,1755915088503,-400.0,0.0001589,2]
[380980010,1755915088513,-400.0,0.0001589,2]
[380980011,1755915088522,-510.71,0.0001589,2]
[380980012,1755915088532,-400.0,0.0001589,2]
[380980013,1755915088541,-400.0,0.0001589,2]
[380980014,1755915088551,-178.54732,0.0001589,2]
[380980015,1755915088561,-702.84,0.0001589,2]
[380980016,1755915088570,-400.0,0.0001589,2]
[380980017,1755915088579,-151.0,0.0001589,2]
[380980018,1755915088589,-821.44,0.0001589,2]
[380980019,1755915088598,-400.0,0.0001589,2]
[380980020,1755915088608,-400.0,0.0001589,2]
[380980021,1755915088617,-400.0,0.0001589,2]
[380980022,1755915088627,-400.0,0.0001589,2]
[380980023,1755915088636,-151.0,0.0001589,2]
[380980024,1755915088646,-562.97,0.0001589,2]
[380980025,1755915088655,-400.0,0.0001589,2]
[380980026,1755915088665,-151.0,0.0001589,2]
[380980027,1755915088675,-151.0,0.0001589,2]
[380980028,1755915088685,-400.0,0.0001589,2]
[380980029,1755915088694,-400.0,0.0001589,2]
[380980030,1755915088704,-152.243745,0.0001589,2]
[380980031,1755915088714,-400.0,0.0001589,2]
[380980032,1755915088723,-151.0,0.0001589,2]
[380980033,1755915088733,-448.39295133,0.0001589,2]
[380980034,1755915088743,-400.0,0.0001589,2]
[380980035,1755915088752,-748.43,0.0001589,2]
[380980036,1755915088762,-400.0,0.0001589,2]
[380980037,1755915088772,-479.45,0.0001589,2]
[380980038,1755915088781,-400.0,0.0001589,2]
[380980039,1755915088791,-264.6155332,0.0001589,2]
[380980040,1755915088800,-400.83,0.0001589,2]
[380980041,1755915088811,-400.0,0.0001589,2]
[380980042,1755915088821,-400.0,0.0001589,2]
[380980043,1755915088830,-400.0,0.0001589,2]
[380980044,1755915088840,-400.0,0.0001589,2]
[380980045,1755915088849,-400.0,0.0001589,2]
[380980046,1755915088859,-400.0,0.0001589,2]
[380980047,1755915088869,-400.0,0.0001589,2]
[380980048,1755915088879,-439.0,0.0001589,2]
[380980049,1755915088888,-155.316394,0.0001589,2]
[380980050,1755915088898,-400.0,0.0001589,2]
[380980051,1755915088908,-155.316394,0.0001589,2]
[380980052,1755915088918,-305.19321346,0.0001589,2]
[380980053,1755915088928,-155.316394,0.0001589,2]
[380980054,1755915088939,-695.75,0.0001589,2]
[380980055,1755915088948,-155.316394,0.0001589,2]
[380980056,1755915088958,-400.0,0.0001589,2]
[380980057,1755915088968,-400.0,0.0001589,2]
[380980058,1755915088977,-230.43308204,0.0001589,2]
[380980059,1755915088987,-400.0,0.0001589,2]
[380980060,1755915088997,-400.0,0.0001589,2]
[380980061,1755915089006,-978.63,0.0001589,2]
[380980062,1755915089016,-400.0,0.0001589,2]
[380980063,1755915089026,-400.0,0.0001589,2]
[380980064,1755915089035,-242.95303466,0.0001589,2]
[380980065,1755915089045,-2075.8,0.0001589,2]
[380980066,1755915089054,-822.82,0.0001589,2]
[380980067,1755915089064,-615.23,0.0001589,2]
[380980068,1755915089074,-400.0,0.0001589,2]
[380980069,1755915089083,-400.0,0.0001589,2]
[380980070,1755915089093,-460.7,0.0001589,2]
[380980071,1755915089102,-400.0,0.0001589,2]
[380980072,1755915089112,-602.09,0.0001589,2]
[380980073,1755915089121,-400.0,0.0001589,2]
[380980074,1755915089131,-400.0,0.0001589,2]
[380980075,1755915089141,-400.0,0.0001589,2]
[380980076,1755915089150,-497.4,0.0001589,2]
[380980077,1755915089161,-206.82255559,0.0001589,2]
[380980078,1755915089171,-400.0,0.0001589,2]
[380980079,1755915089180,-400.0,0.0001589,2]
[380980080,1755915089189,-430.46,0.0001589,2]
[380980081,1755915089199,-400.0,0.0001589,2]
[380980082,1755915089208,-400.0,0.0001589,2]
[380980083,1755915089217,-400.0,0.0001589,2]
[380980084,1755915089227,-400.0,0.0001589,2]
[380980085,1755915089238,-400.0,0.0001589,2]
[380980086,1755915089248,-400.0,0.0001589,2]
[380980087,1755915089257,-417.83,0.0001589,2]
[380980088,1755915089266,-400.0,0.0001589,2]
[380980089,1755915089277,-471.86,0.0001589,2]
[380980090,1755915089289,-400.0,0.0001589,2]
[380980091,1755915089299,-400.0,0.0001589,2]
[380980092,1755915089309,-400.0,0.0001589,2]
[380980093,1755915089320,-400.0,0.0001589,2]
[380980094,1755915089330,-449.24,0.0001589,2]
[380980095,1755915089340,-236.67100003,0.0001589,2]
[380980096,1755915089351,-400.0,0.0001589,2]
[380980097,1755915089361,-424.10385161,0.0001589,2]
[380980098,1755915089371,-400.0,0.0001589,2]
[380980099,1755915089381,-400.0,0.0001589,2]
[380980100,1755915089391,-496.0,0.0001589,2]
[380980101,1755915089401,-625.5,0.0001589,2]
[380980102,1755915089476,-616.04,0.0001589,2]
[380980103,1755915089487,-445.08,0.0001589,2]
[380980104,1755915089496,-400.0,0.0001589,2]
[380980105,1755915089506,-400.0,0.0001589,2]
[380980106,1755915089516,-694.25,0.0001589,2]
[380980107,1755915089525,-400.0,0.0001589,2]
[380980108,1755915089535,-400.0,0.0001589,2]
[380980109,1755915089545,-400.0,0.0001589,2]
[380980110,1755915089555,-427.98,0.0001589,2]
[380980111,1755915089564,-408.7,0.0001589,2]
[380980112,1755915089575,-436.96,0.0001589,2]
[380980113,1755915089584,-528.61,0.0001589,2]
[380980114,1755915089594,-400.0,0.0001589,2]
[380980115,1755915089603,-400.0,0.0001589,2]
[380980116,1755915089613,-453.46,0.0001589,2]
[380980117,1755915089623,-476.57,0.0001589,2]
[380980118,1755915089632,-400.0,0.0001589,2]
[380980119,1755915089642,-400.0,0.0001589,2]
[380980120,1755915089652,-400.0,0.0001589,2]
[380980121,1755915089661,-556.06,0.0001589,2]
[380980122,1755915089672,-400.0,0.0001589,2]
[380980123,1755915089681,-775.08,0.0001589,2]
[380980124,1755915089691,-400.0,0.0001589,2]
[380980125,1755915089700,-400.0,0.0001589,2]
[380980126,1755915089710,-400.0,0.0001589,2]
[380980127,1755915089719,-400.0,0.0001589,2]
[380980128,1755915089729,-400.0,0.0001589,2]
[380980129,1755915089740,-400.0,0.0001589,2]
[380980130,1755915089750,-234.34355965,0.0001589,2]
[380980131,1755915089761,-858.86,0.0001589,2]
[380980132,1755915089771,-400.0,0.0001589,2]
[380980133,1755915089782,-400.0,0.0001589,2]
[380980134,1755915089791,-400.0,0.0001589,2]
[380980135,1755915089802,-451.43,0.0001589,2]
[380980136,1755915089812,-547.24,0.0001589,2]
[380980137,1755915089822,-400.0,0.0001589,2]
[380980138,1755915089832,-552.9,0.0001589,2]
[380980139,1755915089842,-640.16,0.0001589,2]
[380980140,1755915089853,-418.59,0.0001589,2]
[380980141,1755915089863,-402.86,0.0001589,2]
[380980142,1755915089872,-400.0,0.0001589,2]
[380980143,1755915089881,-508.32,0.0001589,2]
[380980144,1755915089890,-400.0,0.0001589,2]
[380980145,1755915089900,-409.92571558,0.0001589,2]
[380980146,1755915089909,-400.0,0.0001589,2]
[380980147,1755915089918,-400.0,0.0001589,2]
[380980148,1755915089928,-400.0,0.0001589,2]
[380980149,1755915089937,-459.6866411,0.0001589,2]
[380980150,1755915089947,-400.0,0.0001589,2]
[380980151,1755915089956,-791.97,0.0001589,2]
[380980152,1755915089965,-400.0,0.0001589,2]
[380980153,1755915089975,-400.0,0.0001589,2]
[380980154,1755915089984,-160.142309,0.0001589,2]
[380980155,1755915089994,-400.0,0.0001589,2]
[380980156,1755915090003,-400.0,0.0001589,2]
[380980157,1755915090013,-726.86,0.0001589,2]
[380980158,1755915090022,-400.0,0.0001589,2]
[380980159,1755915090031,-400.0,0.0001589,2]
[380980160,1755915090041,-151.0,0.0001589,2]
[380980161,1755915090050,-400.0,0.0001589,2]
[380980162,1755915090059,-400.0,0.0001589,2]
[380980163,1755915090069,-400.0,0.0001589,2]
[380980164,1755915090079,-400.0,0.0001589,2]
[380980165,1755915090089,-400.0,0.0001589,2]
[380980166,1755915090098,-400.0,0.0001589,2]
[380980167,1755915090108,-400.0,0.0001589,2]
[380980168,1755915090117,-400.0,0.0001589,2]
[380980169,1755915090127,-159.280635,0.0001589,2]
[380980170,1755915090137,-373.32111712,0.0001589,2]
[380980171,1755915090147,-400.0,0.0001589,2]
[380980172,1755915090156,-400.0,0.0001589,2]
[380980173,1755915090166,-2421.44,0.0001589,2]
[380980174,1755915090175,-400.0,0.0001589,2]
[380980175,1755915090185,-741.62,0.0001589,2]
[380980176,1755915090194,-400.0,0.0001589,2]
[380980177,1755915090203,-400.0,0.0001589,2]
[380980178,1755915090213,-400.0,0.0001589,2]
[380980179,1755915090222,-400.0,0.0001589,2]
[380980180,1755915090231,-400.0,0.0001589,2]
[380980181,1755915090241,-420.62,0.0001589,2]
[380980182,1755915090250,-593.77,0.0001589,2]
[380980183,1755915090259,-400.0,0.0001589,2]
[380980184,1755915090268,-400.0,0.0001589,2]
[380980185,1755915090282,-400.0,0.0001589,2]
[380980186,1755915090292,-986.68,0.0001589,2]
[380980187,1755915090301,-151.667894,0.0001589,2]
[380980188,1755915090310,-400.0,0.0001589,2]
[380980189,1755915090321,-400.0,0.0001589,2]
[380980190,1755915090330,-400.0,0.0001589,2]
[380980191,1755915090340,-151.0,0.0001589,2]
[380980192,1755915090350,-783.79,0.0001589,2]
[380980193,1755915090360,-400.0,0.0001589,2]
[380980194,1755915090371,-400.0,0.0001589,2]
[380980195,1755915090389,-400.0,0.0001589,2]
[380980196,1755915090401,-699.45,0.0001589,2]
[380980197,1755915090411,-400.0,0.0001589,2]
[380980198,1755915090421,-400.0,0.0001589,2]
[380980199,1755915090430,-316.71452074,0.0001589,2]
[380980200,1755915090439,-400.0,0.0001589,2]
[380980201,1755915090448,-400.0,0.0001589,2]
[380980202,1755915090458,-515.96447824,0.0001589,2]
[380980203,1755915090468,-400.0,0.0001589,2]
[380980204,1755915090478,-448.31,0.0001589,2]
[380980205,1755915090487,-400.0,0.0001589,2]
[380980206,1755915090496,-563.71,0.0001589,2]
[380980207,1755915090506,-598.32,0.0001589,2]
[380980208,1755915090515,-400.0,0.0001589,2]
[380980209,1755915090525,-400.0,0.0001589,2]
[380980210,1755915090534,-526.26,0.0001589,2]
[380980211,1755915090544,-400.0,0.0001589,2]
[380980212,1755915090553,-400.0,0.0001589,2]
[380980213,1755915090562,-400.0,0.0001589,2]
[380980214,1755915090572,-408.72,0.0001589,2]
[380980215,1755915090581,-400.0,0.0001589,2]
[380980216,1755915090590,-212.03540846,0.0001589,2]
[380980217,1755915090600,-441.38,0.0001589,2]
[380980218,1755915090609,-400.0,0.0001589,2]
[380980219,1755915090619,-637.68,0.0001589,2]
[380980220,1755915090628,-334.09487639,0.0001589,2]
[380980221,1755915090637,-400.0,0.0001589,2]
[380980222,1755915090647,-400.0,0.0001589,2]
[380980223,1755915090656,-400.0,0.0001589,2]
[380980224,1755915090666,-151.0,0.0001589,2]
[380980225,1755915090675,-151.0,0.0001589,2]
[380980226,1755915090685,-400.0,0.0001589,2]
[380980227,1755915090694,-400.0,0.0001589,2]
[380980228,1755915090704,-400.0,0.0001589,2]
[380980229,1755915090714,-266.19010632,0.0001589,2]
[380980230,1755915090723,-400.0,0.0001589,2]
[380980231,1755915090733,-400.0,0.0001589,2]
[380980232,1755915090743,-209.85297944,0.0001589,2]
[380980233,1755915090753,-400.0,0.0001589,2]
[380980234,1755915090763,-755.42,0.0001589,2]
[380980235,1755915090773,-400.0,0.0001589,2]
[380980236,1755915090782,-400.0,0.0001589,2]
[380980237,1755915090792,-400.0,0.0001589,2]
[380980238,1755915090802,-400.0,0.0001589,2]
[380980239,1755915090812,-400.0,0.0001589,2]
[380980240,1755915090822,-493.66,0.0001589,2]
[380980241,1755915090832,-489.36,0.0001589,2]
[380980242,1755915090842,-1004.4,0.0001589,2]
[380980243,1755915090851,-400.0,0.0001589,2]
[380980244,1755915090860,-400.0,0.0001589,2]
[380980245,1755915090871,-151.0,0.0001589,2]
[380980246,1755915090880,-400.0,0.0001589,2]
[380980247,1755915090890,-400.0,0.0001589,2]
[380980248,1755915090899,-400.0,0.0001589,2]
[380980249,1755915090909,-151.0,0.0001589,2]
[380980250,1755915090919,-151.0,0.0001589,2]
[380980251,1755915090928,-1453.12,0.0001589,2]
[380980252,1755915090938,-400.0,0.0001589,2]
[380980253,1755915090948,-195.42250284,0.0001589,2]
[380980254,1755915090958,-400.0,0.0001589,2]
[380980255,1755915090968,-370.86503469,0.0001589,2]
[380980256,1755915090978,-71830.12,0.000159,2]
[380980257,1755915090988,-2000.0,0.00015916,2]
[380980258,1755915090998,-2000.0,0.00015916,2]
[380980259,1755915091009,-900.0,0.00015967,2]
[380980260,1755915091018,-900.0,0.00015967,2]
[380980261,1755915091028,-900.0,0.00015967,2]
[380980262,1755915091038,-900.0,0.00015967,2]
[380980263,1755915091048,-900.0,0.00015967,2]
[380980264,1755915091058,-900.0,0.00015967,2]
[380980265,1755915091068,-900.0,0.00015967,2]
[380980266,1755915091078,-902.92487436,0.00015967,2]
[380980267,1755915091088,-900.0,0.00015967,2]
[380980268,1755915091097,-900.0,0.00015967,2]
[380980269,1755915091107,-900.0,0.00015967,2]
[380980270,1755915091117,-900.0,0.00015967,2]
[380980271,1755915091127,-900.0,0.00015967,2]
[380980272,1755915091137,-900.0,0.00015967,2]
[380980273,1755915091146,-900.0,0.00015967,2]
[380980274,1755915091156,-900.0,0.00015967,2]
[380980275,1755915091166,-151.0,0.00015967,2]
[380980276,1755915091177,-155.898126,0.00015967,2]
[380980277,1755915091186,-161.772634,0.00015967,2]
[380980278,1755915091196,-151.0,0.00015967,2]
[380980279,1755915091206,-5000.0,0.00016,2]
[380980280,1755915091216,-230.14032579,0.00016085,2]
[380980281,1755915091226,-230.14032579,0.00016087,2]
[380980282,1755915091236,-230.14032579,0.00016087,2]
[380980283,1755915091246,-150.0,0.000161,2]
[380980284,1755915091256,-1000.0,0.00016135,2]
[380980285,1755915091265,-500.0,0.00016135,2]
[380980286,1755915091276,-230.14032579,0.00016137,2]
[380980287,1755915091290,-230.14032579,0.00016139,2]
[380980288,1755915091300,-6436.42578016,0.00016155,2]
[380980289,1755915091310,-669.3,0.00016163,2]
[380980290,1755915091321,-400.0,0.00016163,2]
[380980291,1755915091331,-400.0,0.00016163,2]
[380980292,1755915091341,-403.74,0.00016163,2]
[380980293,1755915091351,-1285.05,0.00016163,2]
[380980294,1755915091361,-852.94,0.00016163,2]
[380980295,1755915091372,-400.0,0.00016163,2]
[380980296,1755915091382,-400.0,0.00016163,2]
[380980297,1755915091391,-400.0,0.00016163,2]
[380980298,1755915091401,-540.0,0.00016163,2]
[380980299,1755915091412,-488.67,0.00016163,2]
[380980300,1755915091424,-400.0,0.00016163,2]
[380980301,1755915091435,-400.0,0.00016163,2]
[380980302,1755915091445,-400.0,0.00016163,2]
[380980303,1755915091455,-730.86,0.00016163,2]
[380980304,1755915091465,-400.0,0.00016163,2]
[380980305,1755915091475,-423.7,0.00016163,2]
[380980306,1755915091485,-400.0,0.00016163,2]
[380980307,1755915091495,-400.0,0.00016163,2]
[380980308,1755915091505,-400.0,0.00016163,2]
[380980309,1755915091514,-400.0,0.00016163,2]
[380980310,1755915091524,-400.0,0.00016164,2]
[380980311,1755915091534,-400.0,0.00016164,2]
[380980312,1755915091543,-608.46,0.00016164,2]
[380980313,1755915091553,-513.5,0.00016164,2]
[380980314,1755915091563,-400.0,0.00016164,2]
[380980315,1755915091573,-400.0,0.00016164,2]
[380980316,1755915091582,-218.02770349,0.00016164,2]
[380980317,1755915091592,-400.0,0.00016164,2]
[380980318,1755915091602,-223.89312471,0.00016164,2]
[380980319,1755915091612,-400.0,0.00016164,2]
[380980320,1755915091622,-400.0,0.00016164,2]
[380980321,1755915091632,-429.56,0.00016164,2]
[380980322,1755915091642,-402.63,0.00016164,2]
[380980323,1755915091651,-439.77,0.00016164,2]
[380980324,1755915091661,-400.0,0.00016164,2]
[380980325,1755915091671,-432.83,0.00016164,2]
[380980326,1755915091680,-400.0,0.00016164,2]
[380980327,1755915091690,-526.89,0.00016164,2]
[380980328,1755915091700,-483.75,0.00016164,2]
[380980329,1755915091709,-400.0,0.00016164,2]
[380980330,1755915091719,-407.49578872,0.00016164,2]
[380980331,1755915091730,-400.0,0.00016164,2]
[380980332,1755915091741,-400.0,0.00016164,2]
[380980333,1755915091751,-400.0,0.00016164,2]
[380980334,1755915091761,-400.0,0.00016164,2]
[380980335,1755915091771,-400.0,0.00016164,2]
[380980336,1755915091780,-400.0,0.00016164,2]
[380980337,1755915091790,-400.0,0.00016164,2]
[380980338,1755915091800,-151.0,0.00016164,2]
[380980339,1755915091809,-400.0,0.00016164,2]
[380980340,1755915091820,-400.0,0.00016164,2]
[380980341,1755915091830,-400.0,0.00016164,2]
[380980342,1755915091839,-400.0,0.00016164,2]
[380980343,1755915091849,-500.88530171,0.00016164,2]
[380980344,1755915091859,-539.89,0.00016164,2]
[380980345,1755915091869,-400.0,0.00016164,2]
[380980346,1755915091878,-400.0,0.00016164,2]
[380980347,1755915091888,-590.35,0.00016164,2]
[380980348,1755915091897,-400.0,0.00016164,2]
[380980349,1755915091907,-400.0,0.00016164,2]
[380980350,1755915091917,-400.0,0.00016164,2]
[380980351,1755915091927,-400.0,0.00016164,2]
[380980352,1755915091937,-576.58,0.00016164,2]
[380980353,1755915091947,-400.0,0.00016164,2]
[380980354,1755915091957,-448.1,0.00016164,2]
[380980355,1755915091966,-433.38580632,0.00016164,2]
[380980356,1755915091975,-400.0,0.00016164,2]
[380980357,1755915092100,-400.0,0.00016164,2]
[380980358,1755915092110,-303.38508533,0.00016164,2]
[380980359,1755915092120,-400.0,0.00016164,2]
[380980360,1755915092130,-400.0,0.00016164,2]
[380980361,1755915092140,-400.0,0.00016164,2]
[380980362,1755915092149,-400.0,0.00016164,2]
[380980363,1755915092159,-400.0,0.00016164,2]
[380980364,1755915092168,-400.0,0.00016164,2]
[380980365,1755915092180,-400.0,0.00016164,2]
[380980366,1755915092190,-474.35,0.00016164,2]
[380980367,1755915092200,-400.0,0.00016164,2]
[380980368,1755915092209,-559.6,0.00016164,2]
[380980369,1755915092219,-462.9,0.00016164,2]
[380980370,1755915092229,-400.0,0.00016164,2]
[380980371,1755915092239,-199.26627783,0.00016164,2]
[380980372,1755915092249,-531.73001157,0.00016164,2]
[380980373,1755915092258,-510.17,0.00016164,2]
[380980374,1755915092268,-491.3,0.00016164,2]
[380980375,1755915092278,-486.38,0.00016164,2]
[380980376,1755915092290,-400.0,0.00016164,2]
[380980377,1755915092300,-400.0,0.00016164,2]
[380980378,1755915092309,-445.55,0.00016164,2]
[380980379,1755915092319,-526.33,0.00016164,2]
[380980380,1755915092328,-667.87,0.00016164,2]
[380980381,1755915092338,-463.55,0.00016164,2]
[380980382,1755915092347,-400.0,0.00016164,2]
[380980383,1755915092357,-400.0,0.00016164,2]
[380980384,1755915092367,-408.1482342,0.00016164,2]
[380980385,1755915092376,-400.0,0.00016164,2]
[380980386,1755915092386,-174.989948,0.00016164,2]
[380980387,1755915092396,-400.0,0.00016164,2]
[380980388,1755915092405,-400.0,0.00016164,2]
[380980389,1755915092414,-546.73,0.00016164,2]
[380980390,1755915092425,-400.0,0.00016164,2]
[380980391,1755915092435,-400.0,0.00016164,2]
[380980392,1755915092444,-400.0,0.00016164,2]
[380980393,1755915092454,-400.0,0.00016164,2]
[380980394,1755915092465,-400.0,0.00016164,2]
[380980395,1755915092475,-510.71,0.00016164,2]
[380980396,1755915092485,-400.0,0.00016164,2]
[380980397,1755915092494,-400.0,0.00016164,2]
[380980398,1755915092504,-178.54732,0.00016164,2]
[380980399,1755915092513,-702.84,0.00016164,2]
[380980400,1755915092523,-400.0,0.00016164,2]
[380980401,1755915092532,-821.44,0.00016164,2]
[380980402,1755915092541,-400.0,0.00016164,2]
[380980403,1755915092550,-400.0,0.00016164,2]
[380980404,1755915092560,-400.0,0.00016164,2]
[380980405,1755915092569,-400.0,0.00016164,2]
[380980406,1755915092578,-562.97,0.00016164,2]
[380980407,1755915092588,-400.0,0.00016164,2]
[380980408,1755915092598,-453.7125078,0.00016164,2]
[380980409,1755915092607,-400.0,0.00016164,2]
[380980410,1755915092617,-400.0,0.00016164,2]
[380980411,1755915092627,-400.0,0.00016164,2]
[380980412,1755915092637,-748.43,0.00016164,2]
[380980413,1755915092646,-400.0,0.00016164,2]
[380980414,1755915092655,-479.45,0.00016164,2]
[380980415,1755915092665,-400.0,0.00016164,2]
[380980416,1755915092674,-400.83,0.00016164,2]
[380980417,1755915092683,-400.0,0.00016164,2]
[380980418,1755915092693,-330.05909593,0.00016164,2]
[380980419,1755915092702,-400.0,0.00016164,2]
[380980420,1755915092713,-400.0,0.00016164,2]
[380980421,1755915092722,-400.0,0.00016164,2]
[380980422,1755915092732,-400.0,0.00016164,2]
[380980423,1755915092741,-269.7798472,0.00016164,2]
[380980424,1755915092750,-439.0,0.00016164,2]
[380980425,1755915092760,-400.0,0.00016164,2]
[380980426,1755915092769,-695.75,0.00016164,2]
[380980427,1755915092778,-242.8401615,0.00016164,2]
[380980428,1755915092788,-400.0,0.00016164,2]
[380980429,1755915092797,-400.0,0.00016164,2]
[380980430,1755915092807,-400.0,0.00016164,2]
[380980431,1755915092817,-978.63,0.00016164,2]
[380980432,1755915092826,-400.0,0.00016164,2]
[380980433,1755915092836,-400.0,0.00016164,2]
[380980434,1755915092845,-2075.8,0.00016164,2]
[380980435,1755915092855,-822.82,0.00016164,2]
[380980436,1755915092864,-615.23,0.00016164,2]
[380980437,1755915092874,-400.0,0.00016164,2]
[380980438,1755915092883,-400.0,0.00016164,2]
[380980439,1755915092892,-460.7,0.00016164,2]
[380980440,1755915092901,-400.0,0.00016164,2]
[380980441,1755915092912,-602.09,0.00016164,2]
[380980442,1755915092922,-400.0,0.00016164,2]
[380980443,1755915092932,-400.0,0.00016164,2]
[380980444,1755915092941,-400.0,0.00016164,2]
[380980445,1755915092951,-497.4,0.00016164,2]
[380980446,1755915092960,-400.0,0.00016164,2]
[380980447,1755915092969,-400.0,0.00016164,2]
[380980448,1755915092978,-430.46,0.00016164,2]
[380980449,1755915092988,-400.0,0.00016164,2]
[380980450,1755915092997,-400.0,0.00016164,2]
[380980451,1755915093007,-181.82249854,0.00016164,2]
[380980452,1755915093016,-400.0,0.00016164,2]
[380980453,1755915093026,-400.0,0.00016164,2]
[380980454,1755915093036,-400.0,0.00016164,2]
[380980455,1755915093045,-417.83,0.00016164,2]
[380980456,1755915093055,-400.0,0.00016164,2]
[380980457,1755915093064,-471.86,0.00016164,2]
[380980458,1755915093075,-400.0,0.00016164,2]
[380980459,1755915093084,-252.858432,0.00016164,2]
[380980460,1755915093094,-400.0,0.00016164,2]
[380980461,1755915093104,-400.0,0.00016164,2]
[380980462,1755915093114,-244.01506336,0.00016164,2]
[380980463,1755915093124,-449.24,0.00016164,2]
[380980464,1755915093133,-400.0,0.00016164,2]
[380980465,1755915093143,-400.0,0.00016164,2]
[380980466,1755915093156,-400.0,0.00016164,2]
[380980467,1755915093169,-496.0,0.00016164,2]
[380980468,1755915093179,-625.5,0.00016164,2]
[380980469,1755915093189,-616.04,0.00016164,2]
[380980470,1755915093198,-445.08,0.00016164,2]
[380980471,1755915093208,-400.0,0.00016164,2]
[380980472,1755915093218,-400.0,0.00016164,2]
[380980473,1755915093228,-694.25,0.00016164,2]
[380980474,1755915093237,-400.0,0.00016164,2]
[380980475,1755915093247,-400.0,0.00016164,2]
[380980476,1755915093257,-400.0,0.00016164,2]
[380980477,1755915093267,-427.98,0.00016164,2]
[380980478,1755915093277,-408.7,0.00016164,2]
[380980479,1755915093290,-436.96,0.00016164,2]
[380980480,1755915093301,-528.61,0.00016164,2]
[380980481,1755915093311,-400.0,0.00016164,2]
[380980482,1755915093323,-400.0,0.00016164,2]
[380980483,1755915093333,-453.46,0.00016164,2]
[380980484,1755915093344,-476.57,0.00016164,2]
[380980485,1755915093355,-400.0,0.00016164,2]
[380980486,1755915093365,-400.0,0.00016164,2]
[380980487,1755915093375,-505.36880043,0.00016164,2]
[380980488,1755915093391,-556.06,0.00016164,2]
[380980489,1755915093401,-775.08,0.00016164,2]
[380980490,1755915093411,-151.0,0.00016164,2]
[380980491,1755915093422,-400.0,0.00016164,2]
[380980492,1755915093432,-151.0,0.00016164,2]
[380980493,1755915093443,-400.0,0.00016164,2]
[380980494,1755915093453,-151.0,0.00016164,2]
[380980495,1755915093462,-400.0,0.00016164,2]
[380980496,1755915093472,-400.0,0.00016164,2]
[380980497,1755915093482,-400.0,0.00016164,2]
[380980498,1755915093492,-400.0,0.00016164,2]
[380980499,1755915093502,-858.86,0.00016164,2]
[380980500,1755915093512,-400.0,0.00016164,2]
[380980501,1755915093522,-400.0,0.00016164,2]